bitfinex/quotes_ETHUSD_20230113
["timestamp","ask_amount","ask_price","bid_price","bid_amount"]
[1673587555224,0.23,1412.2,1412.1,8.14180756]
[1673587555638,0.23,1412.2,1412.1,7.08139]
[1673587556080,0.23,1412.2,1412.1,14.16304]
[1673587557326,0.35899728,1412.2,1412.1,14.16304]
[1673587557666,0.35899728,1412.2,1412.1,7.08139]
[1673587558890,0.35899728,1412.2,1412.1,15.22345756]
[1673587559135,0.23,1412.2,1412.1,7.08139]
[1673587559355,0.23,1412.2,1412.1,8.14180756]
[1673587559883,0.23,1412.2,1412.1,7.08139]
[1673587560043,0.23,1412.2,1412.1,8.14180756]
[1673587560252,0.23,1412.2,1412.1,7.08139]
[1673587560986,0.23,1412.2,1412.1,8.14180756]
[1673587561735,0.23,1412.2,1412.1,7.08139]
[1673587561933,0.23,1412.2,1412.1,8.14180756]
[1673587562876,0.23,1412.2,1412.1,15.22345756]
[1673587563298,0.23,1412.3,1412.1,15.22345756]
[1673587563507,0.23,1412.2,1412.1,15.22345756]
[1673587567549,0.23,1412.2,1412.1,8.14180756]
[1673587567760,0.23,1412.2,1412.1,7.08139]
[1673587568253,0.23,1412.2,1412.1,7.13139]
[1673587568599,0.23,1412.2,1412.1,7.08139]
[1673587568757,0.54951677,1412.2,1412.1,7.08139]
[1673587571926,0.54951677,1412.2,1412.1,14.16304]
[1673587572172,0.23,1412.2,1412.1,14.16304]
[1673587572543,0.22680021,1412.2,1412.1,14.16304]
[1673587573383,0.22680021,1412.2,1412.1,7.08139]
[1673587574012,1.34380021,1412.2,1412.1,7.08139]
[1673587574483,1.34380021,1412.2,1412.1,1.06041756]
[1673587574696,1.34380021,1412.2,1412.0,34.21379556]
[1673587574942,1.34380021,1412.2,1412.0,34.14779556]
[1673587575790,0.22680021,1412.2,1412.1,1.06041756]
[1673587575975,0.22680021,1412.2,1412.1,25.89304828]
[1673587576187,0.23,1412.3,1412.1,25.89304828]
[1673587576371,0.23,1412.3,1412.1,23.89304828]
[1673587579097,1.85681518,1412.4,1412.2,2.57341756]
[1673587579342,0.73084238,1412.4,1412.3,14.16128]
[1673587581036,0.96084238,1412.4,1412.3,14.16128]
[1673587583872,0.95669249,1412.4,1412.3,14.16128]
[1673587589091,0.95669249,1412.4,1412.3,7.08064]
[1673587589297,3.21996438,1412.4,1412.3,7.08064]
[1673587589967,4.27993718,1412.4,1412.3,7.08064]
[1673587590880,4.27993718,1412.4,1412.3,6.02688456]
[1673587599326,2.01666529,1412.4,1412.3,6.02688456]
[1673587599646,0.95669249,1412.4,1412.3,13.10752456]
[1673587599827,0.95669249,1412.4,1412.3,14.16794212]
[1673587600699,0.95669249,1412.4,1412.3,13.10752456]
[1673587605174,0.95669249,1412.4,1412.3,13.10436299]
[1673587609213,3.06138902,1412.4,1412.3,13.10436299]
[1673587609428,3.06138902,1412.4,1412.3,6.02372299]
[1673587614472,4.12136182,1412.4,1412.3,6.02372299]
[1673587614664,5.87759468,1412.4,1412.3,6.02372299]
[1673587614876,5.94359468,1412.4,1412.3,6.02372299]
[1673587619679,5.94159468,1412.4,1412.3,6.02572299]
[1673587619890,5.94359468,1412.4,1412.3,6.02372299]
[1673587624561,13.62838307,1412.4,1412.2,1.17641756]
[1673587624775,1.59283831,1412.3,1412.2,1.11041756]
[1673587624936,1.59283831,1412.3,1412.2,0.05]
[1673587626087,1.59283831,1412.3,1412.2,7.08114]
[1673587627042,1.59283831,1412.3,1412.1,23.95846828]
[1673587627354,1.59283831,1412.3,1412.1,23.89246828]
[1673587628028,1.59283831,1412.3,1412.1,22.30478756]
[1673587628347,1.59283831,1412.3,1412.1,23.89246828]
[1673587630228,1.59283831,1412.3,1412.1,22.30478756]
[1673587630449,1.59283831,1412.3,1412.1,15.22330756]
[1673587630663,1.59283831,1412.3,1412.1,16.81098828]
[1673587631033,0.23,1412.3,1412.1,15.23264549]
[1673587631307,0.23,1412.3,1412.1,16.82032621]
[1673587632084,0.23,1412.3,1412.1,15.22330756]
[1673587632548,1.2899728,1412.3,1412.1,15.22330756]
[1673587632714,2.89910377,1412.3,1412.1,15.22330756]
[1673587633136,1.83913097,1412.3,1412.1,15.22330756]
[1673587633388,2.89910377,1412.3,1412.1,15.22330756]
[1673587636547,2.89910377,1412.3,1412.1,14.16289]
[1673587638597,2.89910377,1412.3,1412.1,7.08141]
[1673587639458,0.28991038,1412.2,1412.1,7.08141]
[1673587639805,0.23,1412.2,1412.1,14.16306]
[1673587640963,1.347,1412.2,1412.1,14.16306]
[1673587641331,0.23,1412.2,1412.1,14.16306]
[1673587641763,0.23,1412.2,1412.1,7.08141]
[1673587643509,1.53491038,1412.2,1412.1,7.08141]
[1673587645184,0.51991038,1412.2,1412.1,7.08341]
[1673587645350,0.51991038,1412.2,1412.1,7.08141]
[1673587647818,0.51991038,1412.2,1412.0,32.62635484]
[1673587647978,0.23,1412.1,1412.0,32.56035484]
[1673587648661,0.23,1412.1,1412.0,34.14803556]
[1673587653391,1.245,1412.1,1412.0,27.06609556]
[1673587653935,1.245,1412.1,1412.0,18.37559556]
[1673587654292,0.23,1412.1,1412.0,16.78791484]
[1673587654504,0.23,1412.1,1412.0,18.37559556]
[1673587655063,1.245,1412.1,1412.0,18.42559556]
[1673587655602,1.245,1412.1,1412.0,16.83791484]
[1673587655759,1.245,1412.1,1412.0,9.75599484]
[1673587656126,1.245,1412.1,1412.0,11.34367556]
[1673587656349,1.245,1412.1,1412.0,9.75599484]
[1673587656654,0.23,1412.1,1412.0,18.42582556]
[1673587657080,0.23,1412.1,1412.0,18.37582556]
[1673587660756,1.245,1412.1,1412.0,9.78067556]
[1673587660924,1.245,1412.1,1412.0,0.05073728]
[1673587660925,21.08485116,1412.1,1412.0,0.05073728]
[1673587661142,28.04082392,1412.1,1412.0,0.05073728]
[1673587661505,28.04082392,1412.1,1411.8,1.10886577]
[1673587661506,2.02228907,1411.9,1411.8,1.10886577]
[1673587661648,9.70429842,1411.9,1411.8,0.04844821]
[1673587661858,6.8050967,1411.9,1411.8,0.04844821]
[1673587662534,10.88201843,1411.9,1411.8,0.04844821]
[1673587662726,22.29531641,1411.9,1411.8,0.04844821]
[1673587662907,33.59910558,1411.9,1411.8,0.04844821]
[1673587663374,32.24200816,1411.9,1411.8,0.04844821]
[1673587663816,29.60662265,1411.9,1411.8,0.04844821]
[1673587664116,26.79031843,1411.9,1411.8,0.04844821]
[1673587665641,33.87296843,1411.9,1411.8,0.04844821]
[1673587666394,15.6307467,1411.9,1411.8,0.04844821]
[1673587666595,7.0350967,1411.9,1411.8,0.04844821]
[1673587669683,8.5480967,1411.9,1411.8,0.04844821]
[1673587675770,7.0350967,1411.9,1411.8,0.04844821]
[1673587689234,14.1177467,1411.9,1411.8,0.04844821]
[1673587689696,15.6267467,1411.9,1411.8,0.04844821]
[1673587689910,25.66397031,1411.9,1411.8,0.04844821]
[1673587690073,32.74662031,1411.9,1411.8,0.04844821]
[1673587690295,32.74662031,1411.9,1411.8,1e-08]
[1673587690967,33.80600085,1411.9,1411.8,1e-08]
[1673587691281,37.07605674,1411.9,1411.8,1e-08]
[1673587691821,41.29745251,1411.9,1411.8,1e-08]
[1673587692555,52.98345251,1411.9,1411.8,1e-08]
[1673587693564,51.92407197,1411.9,1411.8,1e-08]
[1673587693774,59.84707197,1411.9,1411.8,1e-08]
[1673587694205,62.84707197,1411.9,1411.8,1e-08]
[1673587695625,64.96173524,1411.9,1411.8,1e-08]
[1673587695778,63.37598158,1411.9,1411.8,1e-08]
[1673587695990,66.01592746,1411.9,1411.8,1e-08]
[1673587696307,63.90126419,1411.9,1411.7,0.05352791]
[1673587696514,32.67013093,1411.8,1411.7,0.05352791]
[1673587696728,53.98558093,1411.8,1411.7,0.05352791]
[1673587696986,61.87510482,1411.8,1411.7,0.05352791]
[1673587697158,75.87510482,1411.8,1411.7,0.05352791]
[1673587697379,13.42429726,1411.7,1411.6,0.048469]
[1673587697581,55.1878982,1411.7,1411.6,0.048469]
[1673587697800,67.0627982,1411.7,1411.6,0.048469]
[1673587698512,69.70274408,1411.7,1411.6,0.048469]
[1673587698960,77.40634408,1411.7,1411.6,0.048469]
[1673587699191,74.7663982,1411.7,1411.6,0.048469]
[1673587699712,77.40634408,1411.7,1411.6,0.048469]
[1673587700988,78.11481133,1411.7,1411.6,0.048469]
[1673587701203,75.47486545,1411.7,1411.6,0.048469]
[1673587701377,14.16951,1411.5,1411.2,9.10080162]
[1673587701593,3.83633272,1411.4,1411.2,9.03480162]
[1673587701815,3.60633272,1411.3,1411.2,9.03480162]
[1673587702007,3.83633272,1411.3,1411.2,0.08350162]
[1673587702225,4.24956599,1411.3,1411.2,0.08350162]
[1673587713823,3.83633272,1411.3,1411.2,0.08350162]
[1673587713984,0.066,1411.4,1411.2,14.25582162]
[1673587714188,3.60633272,1411.4,1411.2,14.25582162]
[1673587714437,3.60633272,1411.4,1411.2,21.34198162]
[1673587716013,0.23,1411.3,1411.2,21.34198162]
[1673587719503,0.23,1411.3,1411.2,23.63494524]
[1673587720021,0.066,1411.5,1411.2,30.7392744]
[1673587720199,0.066,1411.7,1411.3,1.52135802]
[1673587720410,3.60633272,1411.6,1411.4,21.25548]
[1673587721462,0.23,1411.5,1411.4,21.25548]
[1673587723655,0.22769753,1411.5,1411.4,21.25548]
[1673587729355,0.22769753,1411.5,1411.4,22.76848]
[1673587729569,0.23,1411.6,1411.4,23.82889756]
[1673587729791,0.23,1411.7,1411.4,27.08654019]
[1673587729964,3.83633272,1411.7,1411.4,27.08654019]
[1673587730799,3.83633272,1411.7,1411.5,2.0]
[1673587731015,3.83633272,1411.7,1411.6,7.08415]
[1673587731344,3.83633272,1411.7,1411.6,14.1683]
[1673587736319,0.23,1411.7,1411.6,21.25245]
[1673587739693,0.23,1411.7,1411.6,14.1683]
[1673587741568,0.23,1411.7,1411.6,11.23967803]
[1673587741736,1.56342886,1411.7,1411.6,11.23967803]
[1673587741945,1.56342886,1411.7,1411.6,18.32382803]
[1673587742202,1.56342886,1411.7,1411.6,11.23967803]
[1673587746282,0.23,1411.7,1411.6,11.23967803]
[1673587750237,0.23,1411.7,1411.6,18.32382803]
[1673587750921,0.23,1411.7,1411.6,11.23967803]
[1673587753090,1.28788861,1411.7,1411.6,11.23967803]
[1673587753606,0.23,1411.7,1411.6,11.23967803]
[1673587754398,0.98830276,1411.7,1411.6,11.23967803]
[1673587756033,2.04619137,1411.7,1411.6,11.23967803]
[1673587757081,3.80331766,1411.7,1411.6,11.23967803]
[1673587757608,2.04619137,1411.7,1411.6,11.23967803]
[1673587758033,3.80330713,1411.7,1411.6,11.23967803]
[1673587759283,3.80330713,1411.7,1411.6,18.32382803]
[1673587759751,3.80327957,1411.7,1411.6,18.32382803]
[1673587761903,3.80025367,1411.7,1411.6,18.32382803]
[1673587765066,3.80025367,1411.7,1411.6,11.23967803]
[1673587765535,5.38708659,1411.7,1411.6,11.23967803]
[1673587765727,5.45308659,1411.7,1411.6,11.23967803]
[1673587768777,1.8083862,1411.5,1411.4,20.36816828]
[1673587768947,2.0383862,1411.5,1411.4,17.26748756]
[1673587769168,3.10020235,1411.5,1411.4,17.26748756]
[1673587769517,4.85754034,1411.5,1411.4,16.20707]
[1673587769681,5.50857767,1411.5,1411.4,7.08497]
[1673587769892,9.18091039,1411.5,1411.4,7.08497]
[1673587770140,9.18091039,1411.5,1411.3,22.38243756]
[1673587770331,1.245,1411.4,1411.3,22.31643756]
[1673587773203,0.23,1411.4,1411.3,22.31643756]
[1673587774045,0.23,1411.4,1411.3,21.25602]
[1673587774514,0.23,1411.4,1411.3,21.25802]
[1673587774726,0.23,1411.4,1411.3,21.25602]
[1673587776030,0.23,1411.4,1411.3,21.25317224]
[1673587778253,5.47750835,1411.4,1411.3,7.08243224]
[1673587778569,5.54350835,1411.4,1411.2,8.58920162]
[1673587778881,5.54350835,1411.4,1411.2,8.52320162]
[1673587779047,0.55435083,1411.3,1411.2,8.52320162]
[1673587779263,9.97477395,1411.3,1411.2,0.08350162]
[1673587779457,10.04077395,1411.3,1411.2,0.08350162]
[1673587780334,5.96968355,1411.3,1411.2,0.08350162]
[1673587781346,7.96968355,1411.3,1411.2,1e-08]
[1673587781788,5.96968355,1411.3,1411.2,1e-08]
[1673587781998,7.46968355,1411.3,1411.2,1e-08]
[1673587782246,5.96968355,1411.3,1411.2,1e-08]
[1673587782943,21.84337395,1411.3,1411.2,1e-08]
[1673587783365,24.85794355,1411.3,1411.2,1e-08]
[1673587784514,28.92903395,1411.3,1411.2,1e-08]
[1673587784727,36.01469395,1411.3,1411.2,1e-08]
[1673587788669,39.02926355,1411.3,1411.2,1e-08]
[1673587789262,1.01699999,1411.1,1411.0,0.0728824]
[1673587789471,4.85333271,1411.1,1411.0,0.0728824]
[1673587802559,4.62863184,1411.1,1411.0,0.0728824]
[1673587816964,11.71529184,1411.1,1411.0,0.0728824]
[1673587817162,22.38095184,1411.1,1411.0,0.0728824]
[1673587817373,24.39780661,1411.1,1411.0,0.0728824]
[1673587818032,28.0965156,1411.1,1411.0,0.0728824]
[1673587818208,31.44127778,1411.1,1411.0,0.0728824]
[1673587818648,29.85444486,1411.1,1411.0,0.0728824]
[1673587819137,42.59902818,1411.1,1411.0,0.0728824]
[1673587819509,42.59902818,1411.1,1411.0,1e-08]
[1673587820030,41.53721203,1411.1,1411.0,1e-08]
[1673587820197,44.53721203,1411.1,1411.0,1e-08]
[1673587820558,46.65393943,1411.1,1411.0,1e-08]
[1673587821236,44.53721203,1411.1,1411.0,1e-08]
[1673587821442,2.0,1411.0,1410.9,1e-08]
[1673587821693,41.31437279,1411.0,1410.9,1e-08]
[1673587821906,37.30928239,1411.0,1410.9,1e-08]
[1673587822119,41.38037279,1411.0,1410.9,1e-08]
[1673587823357,39.62244423,1411.0,1410.9,1e-08]
[1673587823806,41.38051288,1411.0,1410.9,1e-08]
[1673587826196,37.30942248,1411.0,1410.9,1e-08]
[1673587826640,37.30872652,1411.0,1410.9,1e-08]
[1673587827279,36.24971257,1411.0,1410.9,1e-08]
[1673587828007,39.37981692,1411.0,1410.9,1e-08]
[1673587828171,35.30872652,1411.0,1410.9,1e-08]
[1673587828924,34.24971257,1411.0,1410.9,1e-08]
[1673587831160,34.20252932,1411.0,1410.9,1e-08]
[1673587832324,27.11535932,1411.0,1410.9,1e-08]
[1673587832550,20.02818932,1411.0,1410.9,1e-08]
[1673587833460,5.61321812,1411.0,1410.9,1e-08]
[1673587847754,5.61321812,1411.0,1410.9,21.26301001]
[1673587848021,1.82406865,1411.0,1410.9,22.32342757]
[1673587848174,1.75806865,1411.0,1410.9,22.32342757]
[1673587848855,1.75806865,1411.0,1410.9,23.83642757]
[1673587849016,1.75806865,1411.0,1410.9,30.35546155]
[1673587849224,1.75806865,1411.0,1410.9,29.29504399]
[1673587849486,1.75806865,1411.0,1410.9,34.41177579]
[1673587849914,1.75806865,1411.0,1410.9,32.29504399]
[1673587850086,1.75806865,1411.0,1410.9,34.41177579]
[1673587850290,1.75806865,1411.0,1410.9,32.82409507]
[1673587850511,1.75806865,1411.0,1410.9,34.41515538]
[1673587850713,1.75806865,1411.0,1410.9,34.41517923]
[1673587851796,1.75806865,1411.0,1410.9,31.84607022]
[1673587851956,1.75806865,1411.0,1410.9,28.84607022]
[1673587852171,1.75806865,1411.0,1410.9,13.07964606]
[1673587852381,1.75806865,1411.0,1410.9,14.67073022]
[1673587852914,1.75806865,1411.0,1410.9,13.07964606]
[1673587853325,1.98806865,1411.0,1410.9,16.7489628]
[1673587853854,1.98806865,1411.0,1410.9,15.68834001]
[1673587854836,1.98806865,1411.0,1410.9,8.60067001]
[1673587855057,1.98806865,1411.0,1410.9,15.68834001]
[1673587856615,1.98806865,1411.0,1410.9,8.60067001]
[1673587856947,1.98806865,1411.0,1410.9,7.08767001]
[1673587857353,1.98806865,1411.0,1410.9,1e-08]
[1673587858161,5.59440137,1411.0,1410.9,1e-08]
[1673587858370,7.38374034,1411.0,1410.9,1e-08]
[1673587859421,5.66040137,1411.0,1410.9,1e-08]
[1673587860062,5.66040137,1411.0,1410.9,7.08767001]
[1673587860631,5.66040137,1411.0,1410.9,1e-08]
[1673587861245,6.57262566,1411.0,1410.9,1e-08]
[1673587861453,6.57262566,1411.0,1410.8,23.92761715]
[1673587861663,0.23,1410.9,1410.8,22.86699436]
[1673587861838,0.23,1410.9,1410.8,8.69105436]
[1673587866785,0.23,1410.9,1410.8,16.83984715]
[1673587867203,0.23,1410.9,1410.8,15.33584715]
[1673587868488,0.23,1410.9,1410.8,14.27522436]
[1673587869210,2.90726257,1410.9,1410.8,0.09929436]
[1673587870177,3.96627652,1410.9,1410.8,0.09929436]
[1673587870408,2.90726257,1410.9,1410.8,0.09929436]
[1673587871353,6.51359529,1410.9,1410.8,0.09929436]
[1673587871507,4.55959529,1410.9,1410.8,0.09929436]
[1673587871720,4.49359529,1410.9,1410.8,0.09929436]
[1673587875709,9.62369964,1410.9,1410.8,0.09929436]
[1673587875922,18.53559415,1410.9,1410.8,1e-08]
[1673587876175,17.10163928,1410.9,1410.8,1e-08]
[1673587877084,18.6884722,1410.9,1410.8,1e-08]
[1673587877295,17.10163928,1410.9,1410.8,1e-08]
[1673587877711,24.18930928,1410.9,1410.8,1e-08]
[1673587878558,29.76939968,1410.9,1410.8,1e-08]
[1673587878873,37.38488865,1410.9,1410.8,1e-08]
[1673587880025,38.44368519,1410.9,1410.8,1e-08]
[1673587880590,38.44333985,1410.9,1410.8,1e-08]
[1673587882655,37.38488865,1410.9,1410.8,1e-08]
[1673587882903,38.44299536,1410.9,1410.8,1e-08]
[1673587885233,36.85616244,1410.9,1410.8,1e-08]
[1673587889300,38.44299536,1410.9,1410.8,1e-08]
[1673587894801,34.37190496,1410.9,1410.8,1e-08]
[1673587895878,34.37190496,1410.9,1410.6,0.11428086]
[1673587896178,7.04352322,1410.8,1410.6,0.11428086]
[1673587896352,10.92500272,1410.7,1410.6,0.11428086]
[1673587896567,10.99100272,1410.7,1410.6,0.11428086]
[1673587901479,10.99100272,1410.7,1410.6,1e-08]
[1673587902462,0.066,1410.7,1410.6,14.17836001]
[1673587902640,10.9937,1410.8,1410.6,17.25849601]
[1673587902849,14.60003272,1410.8,1410.6,17.25849601]
[1673587903908,0.23,1410.7,1410.6,17.25849601]
[1673587905186,0.23,1410.7,1410.6,15.68936001]
[1673587906220,0.23,1410.7,1410.6,8.60018001]
[1673587909121,0.21112268,1410.7,1410.6,8.60018001]
[1673587909691,0.21112268,1410.7,1410.6,7.08918001]
[1673587911098,1.13212268,1410.7,1410.6,7.08918001]
[1673587911417,4.7384554,1410.7,1410.6,1e-08]
[1673587911582,18.32271961,1410.7,1410.6,1e-08]
[1673587911788,16.38871961,1410.7,1410.6,1e-08]
[1673587912207,9.30004961,1410.7,1410.6,1e-08]
[1673587912574,4.8044554,1410.7,1410.6,1e-08]
[1673587912793,4.87556211,1410.7,1410.6,1e-08]
[1673587913103,2.71093963,1410.8,1410.6,14.17836001]
[1673587913318,2.64493963,1410.8,1410.6,14.17836001]
[1673587913466,1.05810671,1410.8,1410.6,14.17836001]
[1673587914046,2.81643803,1410.8,1410.6,14.17836001]
[1673587914727,4.40327095,1410.8,1410.6,15.2389828]
[1673587914936,0.23,1410.7,1410.6,15.2389828]
[1673587915198,0.23,1410.7,1410.6,26.4834885]
[1673587915990,0.23,1410.7,1410.6,19.3943085]
[1673587919665,0.23,1410.7,1410.6,20.9073085]
[1673587921872,0.23,1410.7,1410.6,9.6628028]
[1673587923574,0.23,1410.7,1410.6,16.7519828]
[1673587924812,0.23,1410.7,1410.6,23.8411628]
[1673587925443,0.23,1410.7,1410.6,16.7519828]
[1673587926283,1.151,1410.7,1410.6,7.08918001]
[1673587927136,1.151,1410.7,1410.6,1e-08]
[1673587927591,2.20910671,1410.7,1410.6,1e-08]
[1673587927962,7.96000655,1410.7,1410.6,1e-08]
[1673587928221,8.02600655,1410.7,1410.6,1e-08]
[1673587929646,10.66357247,1410.7,1410.6,1e-08]
[1673587930320,8.02600655,1410.7,1410.6,1e-08]
[1673587931114,19.33907539,1410.7,1410.6,1e-08]
[1673587932125,12.25040539,1410.7,1410.6,1e-08]
[1673587933266,0.00199999,1410.5,1410.4,22.45606002]
[1673587933480,0.00199999,1410.5,1410.4,15.36608002]
[1673587933656,1.15299999,1410.5,1410.4,16.95716418]
[1673587934514,1.15299999,1410.5,1410.4,9.86720418]
[1673587934911,4.87463271,1410.5,1410.4,9.86720418]
[1673587935633,4.87463271,1410.5,1410.4,2.77731418]
[1673587936002,4.87463271,1410.5,1410.4,1.18623002]
[1673587937252,3.83833271,1410.5,1410.4,8.27641002]
[1673587938593,3.83833271,1410.5,1410.4,1.18623002]
[1673587939359,3.83833271,1410.5,1410.4,0.12560723]
[1673587943941,20.91875316,1410.5,1410.4,1e-08]
[1673587944152,40.09889461,1410.5,1410.4,1e-08]
[1673587944363,42.73646053,1410.5,1410.4,1e-08]
[1673587944610,41.14962761,1410.5,1410.4,1e-08]
[1673587945241,44.87270435,1410.5,1410.4,1e-08]
[1673587945768,46.98943175,1410.5,1410.4,1e-08]
[1673587947130,44.87270435,1410.5,1410.4,1e-08]
[1673587947340,52.54457349,1410.5,1410.4,1e-08]
[1673587947550,1.83599999,1410.3,1410.2,0.13107646]
[1673587947814,40.66917407,1410.3,1410.2,0.13107646]
[1673587947967,45.13149911,1410.3,1410.2,0.13107646]
[1673587948180,48.13149911,1410.3,1410.2,0.13107646]
[1673587948440,66.68649911,1410.3,1410.2,0.13107646]
[1673587948648,64.56814999,1410.3,1410.2,0.13107646]
[1673587948805,66.68649911,1410.3,1410.2,0.13107646]
[1673587949233,6.25,1410.2,1410.1,0.14091354]
[1673587949470,50.00107899,1410.2,1410.1,0.14091354]
[1673587949703,50.00156512,1410.2,1410.1,0.14091354]
[1673587949918,47.18429038,1410.2,1410.1,0.14091354]
[1673587950085,48.24231987,1410.2,1410.1,0.14091354]
[1673587950296,50.00156771,1410.2,1410.1,0.14091354]
[1673587950513,48.24231987,1410.2,1410.1,0.14091354]
[1673587951165,47.18429038,1410.2,1410.1,0.14091354]
[1673587951906,41.11319998,1410.2,1410.1,0.14091354]
[1673587953143,41.11319998,1410.2,1410.0,0.14091354]
[1673587953144,2.0,1410.1,1410.0,0.14091354]
[1673587953454,15.23934272,1410.1,1410.0,0.14091354]
[1673587953683,15.30534272,1410.1,1410.0,0.14091354]
[1673587954693,3.90233272,1410.1,1410.0,0.14091354]
[1673587954908,3.60633272,1410.1,1410.0,7.23310354]
[1673587956555,3.83633272,1410.1,1410.0,7.23310354]
[1673587957107,3.83633272,1410.1,1410.0,14.32529354]
[1673587957589,3.83633272,1410.1,1410.0,15.83829354]
[1673587959429,0.23,1410.1,1410.0,15.83829354]
[1673587959642,0.23,1410.1,1410.0,25.93937389]
[1673587959840,0.23,1410.2,1410.0,25.93937389]
[1673587960056,3.83633272,1410.2,1410.0,25.93937389]
[1673587960524,0.066,1410.3,1410.0,25.93937389]
[1673587960717,0.066,1410.4,1410.2,1.513]
[1673587960927,11.7495,1410.6,1410.2,15.69538]
[1673587961137,3.60633272,1410.5,1410.2,15.69538]
[1673587961331,11.7495,1410.6,1410.4,1.511]
[1673587961541,3.67233272,1410.6,1410.4,1.511]
[1673587961738,3.60633272,1410.6,1410.4,1.511]
[1673587961946,3.60633272,1410.6,1410.5,1.513]
[1673587963842,3.83633272,1410.6,1410.5,1.513]
[1673587966993,0.23,1410.6,1410.5,1.513]
[1673587968772,0.23,1410.6,1410.5,8.60268]
[1673587970078,0.23,1410.6,1410.5,18.128341]
[1673587970623,0.23,1410.7,1410.5,18.128341]
[1673587974081,0.23,1410.7,1410.5,15.69236]
[1673587976962,0.23,1410.7,1410.5,15.6893597]
[1673587978811,1.80981596,1410.4,1410.3,8.60137]
[1673587979265,1.80981596,1410.4,1410.3,4.834093]
[1673587980816,1.80981596,1410.4,1410.3,11.924773]
[1673587982309,1.80981596,1410.4,1410.3,8.60168]
[1673587982646,5.41614868,1410.4,1410.2,10.4478]
[1673587982859,1.151,1410.3,1410.1,7.15749]
[1673587983013,1.151,1410.3,1410.1,7.09149]
[1673587983339,1.151,1410.3,1410.0,25.08001354]
[1673587983555,1.151,1410.3,1410.0,25.01401354]
[1673587984422,1.151,1410.3,1410.0,25.01601354]
[1673587984599,1.151,1410.3,1410.0,25.01401354]
[1673587985231,13.92940859,1410.3,1410.0,17.92204354]
[1673587985477,13.99540859,1410.3,1410.0,17.92204354]
[1673587985643,13.99540859,1410.3,1410.0,10.83011354]
[1673587985849,13.99540859,1410.3,1410.0,9.31711354]
[1673587986084,21.08610859,1410.3,1410.0,9.31711354]
[1673587986326,2.10861086,1410.2,1410.0,9.31711354]
[1673587986498,5.67033272,1410.1,1410.0,0.14091354]
[1673587986689,5.67033272,1410.1,1409.8,8.52696627]
[1673587986690,0.84856955,1409.9,1409.8,8.52696627]
[1673587986897,1.07856955,1409.9,1409.8,0.16006627]
[1673587988207,1.07856955,1409.9,1409.8,1.22068906]
[1673587988593,0.84856955,1409.9,1409.8,12.61053165]
[1673587988806,0.84856955,1409.9,1409.8,28.79693165]
[1673587988998,0.84856955,1409.9,1409.8,21.70373165]
[1673587989668,0.84856955,1409.9,1409.8,23.20573165]
[1673587990113,0.84856955,1409.9,1409.8,30.29893165]
[1673587990517,0.84856955,1409.9,1409.8,23.20573165]
[1673587990942,0.84856955,1409.9,1409.8,30.29893165]
[1673587991917,0.84856955,1409.9,1409.8,23.20573165]
[1673587992121,0.84856955,1409.9,1409.8,30.29893165]
[1673587992530,0.84856955,1409.9,1409.8,31.89001581]
[1673587993141,0.84856955,1409.9,1409.8,34.89001581]
[1673587993358,0.84856955,1409.9,1409.8,33.82939302]
[1673587993883,0.84856955,1409.9,1409.8,33.83139302]
[1673587994241,0.84856955,1409.9,1409.8,34.88926533]
[1673587994722,0.84856955,1409.9,1409.8,33.07926533]
[1673587995277,0.84856955,1409.9,1409.8,31.07926533]
[1673587996824,0.84856955,1409.9,1409.8,22.39498117]
[1673587997036,0.84856955,1409.9,1409.8,1.21993858]
[1673587997245,0.84856955,1409.9,1409.8,0.16006627]
[1673587999343,1.07856955,1409.9,1409.8,0.16006627]
[1673588011168,1.07587976,1409.9,1409.8,0.16006627]
[1673588011686,4.68221248,1409.9,1409.8,0.16006627]
[1673588011896,13.36606277,1409.9,1409.8,0.16006627]
[1673588012058,13.43206277,1409.9,1409.8,0.16006627]
[1673588013154,20.52476277,1409.9,1409.8,0.16006627]
[1673588013987,27.61746277,1409.9,1409.8,0.16006627]
[1673588015884,2.50303005,1409.9,1409.8,0.16006627]
[1673588016097,0.84587976,1409.9,1409.8,0.16006627]
[1673588017765,1.07587976,1409.9,1409.8,0.16006627]
[1673588021023,4.68221248,1409.9,1409.8,0.16006627]
[1673588021233,11.77491248,1409.9,1409.8,0.16006627]
[1673588021443,11.84091248,1409.9,1409.8,0.16006627]
[1673588021695,14.44347373,1409.9,1409.8,0.16006627]
[1673588026536,21.53617373,1409.9,1409.8,0.16006627]
[1673588031599,21.53617373,1409.9,1409.7,1.22496503]
[1673588031600,21.53617373,1409.9,1409.7,0.16509272]
[1673588031805,0.23,1409.8,1409.7,0.16509272]
[1673588033015,11.84253272,1409.8,1409.7,0.16509272]
[1673588033342,14.86277009,1409.8,1409.7,0.16509272]
[1673588035013,7.76957009,1409.8,1409.7,0.16509272]
[1673588035237,14.86277009,1409.8,1409.7,0.16509272]
[1673588035480,0.296,1409.8,1409.7,0.16509272]
[1673588035781,0.23,1409.8,1409.7,1.22496503]
[1673588036831,0.23,1409.8,1409.7,1.27496503]
[1673588037064,0.23,1409.8,1409.7,1.22496503]
[1673588047950,7.3232,1409.8,1409.7,1.22496503]
[1673588048280,17.89082295,1409.8,1409.7,1.22496503]
[1673588048512,28.59035567,1409.8,1409.7,1.22496503]
[1673588049264,28.59035567,1409.8,1409.7,0.16509272]
[1673588049479,29.64838516,1409.8,1409.7,0.16509272]
[1673588050413,31.40791302,1409.8,1409.7,0.16509272]
[1673588052132,34.04727826,1409.8,1409.7,0.16509272]
[1673588052264,35.6360401,1409.8,1409.7,0.16509272]
[1673588052471,34.04727826,1409.8,1409.7,0.16509272]
[1673588052731,31.40791302,1409.8,1409.7,0.16509272]
[1673588053308,34.04725383,1409.8,1409.7,0.16509272]
[1673588053561,31.40791302,1409.8,1409.7,0.16509272]
[1673588053990,35.6360406,1409.8,1409.7,1e-08]
[1673588054205,38.64910151,1409.8,1409.7,1e-08]
[1673588054361,40.76745063,1409.8,1409.7,1e-08]
[1673588055073,34.57801111,1409.8,1409.7,1e-08]
[1673588055411,36.09201111,1409.8,1409.7,1e-08]
[1673588055655,40.16310151,1409.8,1409.7,1e-08]
[1673588056092,42.28145063,1409.8,1409.7,1e-08]
[1673588056620,36.09201111,1409.8,1409.7,1e-08]
[1673588056830,40.16310151,1409.8,1409.7,1e-08]
[1673588057140,25.11894675,1409.7,1409.6,0.2051833]
[1673588057311,34.78279996,1409.7,1409.6,0.2051833]